[Event "European Amateur-ch U1700 2019"]
[Site "Rhodes"]
[Date "2019.04.06"]
[Round "1.4"]
[White "Diamantis, Georgios D."]
[Black "Pantelic, Slobodan"]
[Result "1-0"]
[ECO "B43"]
[WhiteElo "1632"]
[BlackElo "1646"]
[Annotator "NA RC"]
[PlyCount "171"]
[EventDate "2019.04.06"]
[EventType "swiss"]
[EventCountry "GRE"]
[SourceTitle "playchess.com"]
[Source "ChessBase"]
[SourceQuality "1"]
[TimeControl "40/5400+30:1800+30"]

1. e4 {[%emt 0:00:00]} c5 {[%emt 0:00:00]} 2. Nf3 {[%emt 0:00:00]} e6 {[%emt 0:00:00]} 3. d4 {[%emt 0:00:07]} cxd4 {[%emt 0:00:00]} 4. Nxd4 {[%emt 0:00:30]} a6 {[%emt 0:00:00]} 5. Nc3 {[%emt 0:00:24]} b5 {[%emt 0:00:00]} 6. Be3 {[%emt 0:00:42]} Bb7 {[%emt 0:00:00]} 7. Bd3 {[%emt 0:01:39]} Be7 {[%emt 0:00:00]} 8. Qd2 {[%emt 0:01:22]} d6 {[%emt 0:00:00]} 9. Nce2 {[%emt 0:01:17]} Nd7 {[%emt 0:00:00]} 10. O-O {[%emt 0:00:51]} Ngf6 {[%emt 0:00:00]} 11. f3 {[%emt 0:01:22]} Rc8 {[%emt 0:00:02]} 12. c3 {[%emt 0:02:20]} Ne5 {[%emt 0:00:08]} 13. b3 {[%emt 0:00:45]} Nfd7 {[%emt 0:00:51]} 14. Rac1 {[%emt 0:01:27]} Nxd3 {[%emt 0:00:10]} 15. Qxd3 {[%emt 0:00:16]} d5 {[%emt 0:00:52]} 16. exd5 {[%emt 0:01:01]} Bxd5 {[%emt 0:00:02]} 17. Qd2 {[%emt 0:02:33]} O-O {[%emt 0:00:50]} 18. Rfd1 {[%emt 0:01:21]} Ba3 {[%emt 0:00:17]} 19. Rb1 {[%emt 0:00:40]} Bd6 {[%emt 0:00:21]} 20. Bf4 {[%emt 0:00:39]} Bc5 {[%emt 0:00:18]} 21. Be3 {[%emt 0:00:52]} Qb6 {[%emt 0:00:11]} 22. b4 {[%emt 0:00:47]} Be7 {[%emt 0:00:11]} 23. Nf5 {[%emt 0:00:35]} Qd8 {[%emt 0:00:05]} 24. Nxe7+ {[%emt 0:02:01]} Qxe7 {[%emt 0:00:04]} 25. Rbc1 {[%emt 0:02:01]} Rfe8 {[%emt 0:00:52]} 26. Nf4 {[%emt 0:01:05]} Nf6 {[%emt 0:00:06]} 27. Nd3 {[%emt 0:01:24]} Qb7 {[%emt 0:00:25]} 28. Nc5 {[%emt 0:00:36]} Qc6 {[%emt 0:00:08]} 29. Nd3 {[%emt 0:03:32]} Nd7 {[%emt 0:00:18]} 30. Re1 {[%emt 0:01:30]} Bc4 {[%emt 0:00:13]} 31. Bd4 {[%emt 0:01:59]} Qd5 {[%emt 0:00:20]} 32. Nf4 {[%emt 0:01:47]} Qg5 {[%emt 0:00:56]} 33. Be3 {[%emt 0:01:28]} Qf5 {[%emt 0:00:14]} 34. Qxd7 {[%emt 0:00:42]} Red8 {[%emt 0:00:03]} 35. Qb7 {[%emt 0:01:23]} Rb8 {[%emt 0:00:23]} 36. Qe4 {[%emt 0:01:44]} Qf6 {[%emt 0:00:12]} 37. a3 {[%emt 0:00:48]} e5 {[%emt 0:00:22]} 38. Ne2 {[%emt 0:01:18]} Bd3 {[%emt 0:00:04]} 39. Qg4 {[%emt 0:01:16]} Bf5 {[%emt 0:00:03]} 40. Qg3 {[%emt 0:01:54]} h6 {[%emt 0:00:14]} 41. Red1 {[%emt 0:31:07]} Rd3 {[%emt 0:30:16]} 42. Qf2 {[%emt 0:00:00]} Rbd8 {[%emt 0:00:00]} 43. Rxd3 {[%emt 0:00:41]} Rxd3 {[%emt 0:00:03]} 44. Ng3 {[%emt 0:00:00]} Bg6 {[%emt 0:00:00]} 45. Qe2 {[%emt 0:00:00]} Qd8 {[%emt 0:00:00]} 46. Kf1 {[%emt 0:00:00]} Rd7 {[%emt 0:00:00]} 47. Ne4 {[%emt 0:00:00]} Qh4 {[%emt 0:00:00]} 48. Nc5 {[%emt 0:00:00]} Rd8 {[%emt 0:00:00]} 49. Kg1 {[%emt 0:00:00]} Qf6 {[%emt 0:00:00]} 50. Rd1 {[%emt 0:00:00]} Ra8 {[%emt 0:00:00]} 51. Nd7 {[%emt 0:00:00]} Qe6 {[%emt 0:00:00]} 52. Nc5 {[%emt 0:00:00]} Qc6 {[%emt 0:00:00]} 53. Bf2 {[%emt 0:00:00]} Re8 {[%emt 0:00:00]} 54. Bg3 {[%emt 0:00:00]} f6 {[%emt 0:00:00]} 55. Qd2 {[%emt 0:00:00]} Kh7 {[%emt 0:00:00]} 56. Qd7 {[%emt 0:00:00]} Qa8 {[%emt 0:00:00]} 57. Qb7 {[%emt 0:00:00]} Bc2 {[%emt 0:00:00]} 58. Rd7 {[%emt 0:00:00]} Qxb7 {[%emt 0:00:00]} 59. Rxb7 {[%emt 0:00:00]} Ra8 {[%emt 0:00:00]} 60. Kf2 {[%emt 0:00:00]} Bf5 {[%emt 0:00:00]} 61. Ke3 {[%emt 0:00:00]} a5 {[%emt 0:00:00]} 62. Rxb5 {[%emt 0:00:43]} axb4 {[%emt 0:00:02]} 63. axb4 {[%emt 0:00:00]} Ra3 {[%emt 0:00:00]} 64. Be1 {[%emt 0:00:00]} Ra1 {[%emt 0:00:00]} 65. Bd2 {[%emt 0:01:29]} Rg1 {[%emt 0:00:00]} 66. Kf2 {[%emt 0:00:54]} Rd1 {[%emt 0:00:00]} 67. Be1 {[%emt 0:01:06]} h5 {[%emt 0:00:00]} 68. Ra5 {[%emt 0:01:11]} Rc1 {[%emt 0:00:00]} 69. Ra2 {[%emt 0:00:37]} Bg6 {[%emt 0:00:00]} 70. Rb2 {[%emt 0:00:14]} f5 {[%emt 0:00:00]} 71. b5 {[%emt 0:00:15]} e4 {[%emt 0:00:00]} 72. b6 {[%emt 0:00:41]} e3+ {[%emt 0:00:00]} 73. Kxe3 {[%emt 0:00:28]} Rxe1+ 74. Kf2 {[%emt 0:01:36]} Re8 {[%emt 0:00:00]} 75. b7 {[%emt 0:00:03]} Rb8 {[%emt 0:00:00]} 76. Nd7 {[%emt 0:00:11]} Rxb7 {[%emt 0:00:00]} 77. Rxb7 {[%emt 0:00:12]} f4 {[%emt 0:00:00]} 78. c4 {[%emt 0:01:18]} h4 {[%emt 0:00:00]} 79. c5 {[%emt 0:00:20]} Bf7 {[%emt 0:00:00]} 80. Ne5 {[%emt 0:00:50]} Bd5 {[%emt 0:00:00]} 81. Rb6 {[%emt 0:00:40]} g5 {[%emt 0:00:00]} 82. c6 {[%emt 0:00:19]} Be6 {[%emt 0:00:00]} 83. c7 {[%emt 0:02:17]} Bf5 {[%emt 0:00:04]} 84. Rb8 {[%emt 0:00:47]} h3 {[%emt 0:00:00]} 85. gxh3 {[%emt 0:00:34]} Bxh3 {[%emt 0:00:03]} 86. Ng4 {[%emt 0:00:42]} 1-0

[Event "European Amateur-ch U1700 2019"]
[Site "Rhodes"]
[Date "2019.04.06"]
[Round "1.6"]
[White "Papadopoulos, Michail K"]
[Black "Kostov, Kiril"]
[Result "0-1"]
[ECO "B95"]
[WhiteElo "1318"]
[BlackElo "1625"]
[Annotator "NA"]
[PlyCount "62"]
[EventDate "2019.04.06"]
[EventType "swiss"]
[EventCountry "GRE"]
[SourceTitle "playchess.com"]
[Source "ChessBase"]
[SourceQuality "1"]
[TimeControl "40/5400+30:1800+30"]

1. e4 {[%emt 0:00:00]} c5 {[%emt 0:00:00]} 2. Nf3 {[%emt 0:00:07]} d6 {[%emt 0:00:13]} 3. d4 {[%emt 0:00:23]} cxd4 {[%emt 0:00:35]} 4. Nxd4 {[%emt 0:00:24]} Nf6 {[%emt 0:00:50]} 5. Nc3 {[%emt 0:00:31]} a6 {[%emt 0:00:00]} 6. Bg5 {[%emt 0:01:06]} e6 {[%emt 0:00:01]} 7. Bd3 {[%emt 0:01:02]} Be7 {[%emt 0:00:35]} 8. O-O {[%emt 0:00:42]} Nbd7 {[%emt 0:00:35]} 9. Qe2 {[%emt 0:00:41]} Qc7 {[%emt 0:00:29]} 10. Rad1 {[%emt 0:01:16]} b5 {[%emt 0:00:14]} 11. Rfe1 {[%emt 0:01:21]} Bb7 {[%emt 0:00:23]} 12. a4 {[%emt 0:04:23]} bxa4 {[%emt 0:02:07]} 13. Nxa4 {[%emt 0:01:22]} Qa5 {[%emt 0:00:49]} 14. Bxf6 {[%emt 0:02:45]} Bxf6 {[%emt 0:00:07]} 15. e5 {[%emt 0:03:49]} Bxe5 {[%emt 0:01:21]} 16. Be4 {[%emt 0:00:58]} d5 {[%emt 0:01:06]} 17. Nc3 {[%emt 0:04:24]} dxe4 {[%emt 0:01:24]} 18. Nxe4 {[%emt 0:00:28]} Qc7 {[%emt 0:02:15]} 19. Nf3 {[%emt 0:03:33]} O-O {[%emt 0:08:05]} 20. Rxd7 {[%emt 0:01:30]} Bxh2+ {[%emt 0:02:17]} 21. Nxh2 {[%emt 0:00:54]} Qxd7 {[%emt 0:00:01]} 22. Qg4 {[%emt 0:04:43]} f5 {[%emt 0:01:22]} 23. Nc5 {[%emt 0:01:18]} Qc6 {[%emt 0:01:53]} 24. Qf3 {[%emt 0:03:47]} Qxc5 {[%emt 0:01:00]} 25. Qxb7 {[%emt 0:00:51]} Qd5 {[%emt 0:01:56]} 26. Qe7 {[%emt 0:00:44]} Rfe8 {[%emt 0:00:28]} 27. Qc7 {[%emt 0:01:52]} Rac8 {[%emt 0:01:49]} 28. Qa7 {[%emt 0:00:32]} Rxc2 {[%emt 0:01:14]} 29. Qxa6 {[%emt 0:00:43]} Qd2 {[%emt 0:00:58]} 30. Rxe6 {[%emt 0:01:59]} Qxf2+ {[%emt 0:00:07]} 31. Kh1 {[%emt 0:00:32]} Qxg2# {[%emt 0:00:02]} 0-1

[Event "European Amateur-ch U1700 2019"]
[Site "Rhodes"]
[Date "2019.04.07"]
[Round "2.1"]
[White "Apostolakis, Ioannis"]
[Black "Ruzic, Milos"]
[Result "1/2-1/2"]
[ECO "A40"]
[WhiteElo "1439"]
[BlackElo "1674"]
[Annotator "NA"]
[PlyCount "114"]
[EventDate "2019.04.06"]
[EventType "swiss"]
[EventCountry "GRE"]
[SourceTitle "playchess.com"]
[Source "ChessBase"]
[SourceQuality "1"]
[TimeControl "40/5400+30:1800+30"]

1. d4 {[%emt 0:01:57]} b6 {[%emt 0:00:25]} 2. Nc3 {[%emt 0:01:34]} Bb7 {[%emt 0:00:31]} 3. f3 {[%emt 0:00:12]} e6 {[%emt 0:00:53]} 4. Bf4 {[%emt 0:00:09]} d5 {[%emt 0:01:27]} 5. Nh3 {[%emt 0:00:11]} Nf6 {[%emt 0:01:03]} 6. Nf2 {[%emt 0:00:10]} Nh5 {[%emt 0:01:55]} 7. Bd2 {[%emt 0:02:23]} c5 {[%emt 0:01:48]} 8. e3 {[%emt 0:02:55]} Nc6 {[%emt 0:00:48]} 9. Ne2 {[%emt 0:10:23]} Bd6 {[%emt 0:01:25]} 10. c3 {[%emt 0:00:01]} e5 {[%emt 0:05:28]} 11. e4 {[%emt 0:02:52]} Bc7 {[%emt 0:12:45]} 12. c4 {[%emt 0:14:12]} dxe4 {[%emt 0:03:03]} 13. d5 {[%emt 0:01:32]} Nd4 {[%emt 0:05:37]} 14. fxe4 {[%emt 0:06:30]} Nf6 {[%emt 0:03:42]} 15. Ng3 {[%emt 0:06:11]} Qd6 {[%emt 0:08:29]} 16. Bd3 {[%emt 0:01:21]} h6 {[%emt 0:13:10]} 17. Ng4 {[%emt 0:00:25]} Nxg4 {[%emt 0:06:08]} 18. Qxg4 {[%emt 0:00:13]} Qg6 {[%emt 0:00:14]} 19. Qd1 {[%emt 0:05:36]} Bc8 {[%emt 0:01:02]} 20. O-O {[%emt 0:00:56]} Bd7 {[%emt 0:02:27]} 21. Nf5 {[%emt 0:01:04]} Nxf5 {[%emt 0:03:41]} 22. exf5 {[%emt 0:00:18]} Qf6 {[%emt 0:00:13]} 23. Qe1 {[%emt 0:01:12]} Bd6 {[%emt 0:04:28]} 24. Qe4 {[%emt 0:02:22]} a6 {[%emt 0:04:46]} 25. Bc3 {[%emt 0:02:54]} O-O-O {[%emt 0:09:25]} 26. Rab1 {[%emt 0:00:34]} Qe7 {[%emt 0:00:23]} 27. Qe1 {[%emt 0:14:45]} f6 {[%emt 0:00:47]} 28. Kh1 {[%emt 0:01:59]} Kc7 {[%emt 0:00:26]} 29. Be4 {[%emt 0:01:04]} Rb8 {[%emt 0:03:31]} 30. Qd2 {[%emt 0:00:55]} Rhd8 {[%emt 0:00:17]} 31. Rfc1 {[%emt 0:00:23]} Be8 {[%emt 0:01:08]} 32. Qd3 {[%emt 0:00:26]} Kb7 {[%emt 0:00:54]} 33. b4 {[%emt 0:00:35]} Ka7 {[%emt 0:00:07]} 34. a3 {[%emt 0:00:53]} Rdc8 {[%emt 0:01:18]} 35. Qe2 {[%emt 0:01:27]} Qc7 {[%emt 0:00:39]} 36. Bd3 {[%emt 0:00:21]} Bf7 {[%emt 0:02:29]} 37. Qa2 {[%emt 0:00:01]} e4 {[%emt 0:00:28]} 38. Bxe4 {[%emt 0:01:29]} Bxh2 {[%emt 0:00:08]} 39. Bf3 {[%emt 0:07:29]} Bd6 {[%emt 0:00:24]} 40. Be1 {[%emt 0:00:00]} Qe7 {[%emt 0:00:00]} 41. Bf2 {[%emt 0:05:31]} Qe5 {[%emt 0:01:18]} 42. Bg1 {[%emt 0:00:47]} Qxf5 {[%emt 0:00:27]} 43. bxc5 {[%emt 0:01:14]} bxc5 {[%emt 0:00:23]} 44. Rxb8 {[%emt 0:01:21]} Rxb8 {[%emt 0:00:07]} 45. Rf1 {[%emt 0:04:20]} Qe5 {[%emt 0:00:42]} 46. Qf2 {[%emt 0:00:54]} Rb2 {[%emt 0:02:01]} 47. Qh4 {[%emt 0:01:52]} Qg5 {[%emt 0:02:56]} 48. Qh3 {[%emt 0:00:32]} f5 {[%emt 0:01:10]} 49. Bh2 {[%emt 0:00:25]} Rb6 {[%emt 0:08:06]} 50. Bxd6 {[%emt 0:03:34]} Rxd6 {[%emt 0:00:09]} 51. Re1 {[%emt 0:00:30]} Qf6 {[%emt 0:02:06]} 52. Bd1 {[%emt 0:00:36]} Qg5 {[%emt 0:06:17]} 53. Qe3 {[%emt 0:00:32]} Qxe3 {[%emt 0:00:36]} 54. Rxe3 {[%emt 0:00:06]} Rd7 {[%emt 0:01:14]} 55. Ba4 {[%emt 0:00:01]} Rb7 {[%emt 0:01:16]} 56. Bc6 {[%emt 0:00:10]} Rb1+ {[%emt 0:00:28]} 57. Kh2 {[%emt 0:00:30]} Kb6 {[%emt 0:01:51]} 1/2-1/2

[Event "European Amateur-ch U1700 2019"]
[Site "Rhodes"]
[Date "2019.04.07"]
[Round "2.2"]
[White "Snokowski, Marcin"]
[Black "Badrakova, Kseniya"]
[Result "1/2-1/2"]
[ECO "A07"]
[WhiteElo "1659"]
[BlackElo "1435"]
[Annotator "NA"]
[PlyCount "99"]
[EventDate "2019.04.06"]
[EventType "swiss"]
[EventCountry "GRE"]
[SourceTitle "playchess.com"]
[Source "ChessBase"]
[SourceQuality "1"]
[TimeControl "40/5400+30:1800+30"]

1. Nf3 {[%emt 0:00:00]} d5 {[%emt 0:00:00]} 2. g3 {[%emt 0:00:19]} Bf5 {[%emt 0:00:10]} 3. d3 {[%emt 0:00:34]} e6 {[%emt 0:00:25]} 4. Bg2 {[%emt 0:02:07]} Nf6 {[%emt 0:01:12]} 5. c3 {[%emt 0:03:26]} Bd6 {[%emt 0:03:44]} 6. O-O {[%emt 0:02:51]} h6 {[%emt 0:02:36]} 7. a4 {[%emt 0:03:27]} Nbd7 {[%emt 0:04:07]} 8. Na3 {[%emt 0:01:13]} a6 {[%emt 0:03:03]} 9. Nc2 {[%emt 0:12:52]} O-O {[%emt 0:02:07]} 10. b4 {[%emt 0:04:52]} e5 {[%emt 0:04:14]} 11. Nd2 {[%emt 0:06:23]} e4 {[%emt 0:04:57]} 12. dxe4 {[%emt 0:02:27]} Nxe4 {[%emt 0:08:31]} 13. Nxe4 {[%emt 0:00:41]} dxe4 {[%emt 0:00:51]} 14. Ne3 {[%emt 0:07:39]} Bg6 {[%emt 0:03:37]} 15. Qb3 {[%emt 0:04:09]} Re8 {[%emt 0:06:32]} 16. Bb2 {[%emt 0:00:36]} Qe7 {[%emt 0:04:02]} 17. Rad1 {[%emt 0:03:30]} Nf6 {[%emt 0:03:44]} 18. Bc1 {[%emt 0:06:39]} Red8 {[%emt 0:12:09]} 19. Nc2 {[%emt 0:06:37]} Be5 {[%emt 0:07:53]} 20. Be3 {[%emt 0:07:41]} Bf5 {[%emt 0:05:48]} 21. Nd4 {[%emt 0:03:06]} Bxd4 {[%emt 0:03:07]} 22. Bxd4 {[%emt 0:02:24]} Nd5 {[%emt 0:02:29]} 23. a5 {[%emt 0:06:00]} Rab8 {[%emt 0:06:32]} 24. Bc5 {[%emt 0:00:54]} Qe6 {[%emt 0:01:03]} 25. c4 {[%emt 0:00:28]} Nf6 {[%emt 0:00:46]} 26. f3 {[%emt 0:02:51]} b6 {[%emt 0:06:23]} 27. Rxd8+ {[%emt 0:00:25]} Rxd8 {[%emt 0:00:06]} 28. axb6 {[%emt 0:00:33]} cxb6 {[%emt 0:00:04]} 29. Be3 {[%emt 0:00:43]} b5 {[%emt 0:01:31]} 30. Rc1 {[%emt 0:02:26]} Rc8 {[%emt 0:00:29]} 31. Bc5 {[%emt 0:00:54]} Nd7 {[%emt 0:01:30]} 32. Qe3 {[%emt 0:01:16]} Nxc5 {[%emt 0:01:12]} 33. bxc5 {[%emt 0:00:06]} bxc4 {[%emt 0:00:32]} 34. g4 {[%emt 0:00:53]} Bh7 {[%emt 0:00:31]} 35. Qd4 {[%emt 0:02:13]} exf3 {[%emt 0:00:51]} 36. Bxf3 {[%emt 0:00:32]} Qe7 {[%emt 0:00:28]} 37. Qxc4 {[%emt 0:01:32]} Qa7 {[%emt 0:00:17]} 38. Kg2 {[%emt 0:00:23]} Bg6 {[%emt 0:00:44]} 39. h4 {[%emt 0:00:40]} Kf8 {[%emt 0:00:32]} 40. h5 {[%emt 0:00:00]} Bh7 {[%emt 0:00:00]} 41. Qd5 {[%emt 0:02:21]} Qe7 {[%emt 0:05:51]} 42. Qb7 {[%emt 0:01:53]} Qe6 {[%emt 0:01:08]} 43. c6 {[%emt 0:03:27]} a5 {[%emt 0:03:21]} 44. Qd7 {[%emt 0:02:31]} Be4 {[%emt 0:03:14]} 45. Qxe6 {[%emt 0:04:34]} Bxf3+ {[%emt 0:00:10]} 46. exf3 {[%emt 0:01:04]} fxe6 {[%emt 0:00:11]} 47. Rc5 {[%emt 0:00:56]} Ke7 {[%emt 0:01:06]} 48. Rxa5 {[%emt 0:00:22]} Rxc6 {[%emt 0:00:05]} 49. Kg3 {[%emt 0:01:08]} Kf6 {[%emt 0:00:44]} 50. Rb5 {[%emt 0:01:32]} 1/2-1/2

[Event "European Amateur-ch U1700 2019"]
[Site "Rhodes"]
[Date "2019.04.07"]
[Round "2.4"]
[White "Kostov, Kiril"]
[Black "Minko, Uliana"]
[Result "1-0"]
[ECO "C10"]
[WhiteElo "1625"]
[BlackElo "1315"]
[Annotator "NA"]
[PlyCount "73"]
[EventDate "2019.04.06"]
[EventType "swiss"]
[EventCountry "GRE"]
[SourceTitle "playchess.com"]
[Source "ChessBase"]
[SourceQuality "1"]
[TimeControl "40/5400+30:1800+30"]

1. e4 {[%emt 0:00:15]} e6 {[%emt 0:00:00]} 2. Nf3 {[%emt 0:00:28]} d5 {[%emt 0:00:05]} 3. Nc3 {[%emt 0:00:18]} dxe4 {[%emt 0:00:08]} 4. Nxe4 {[%emt 0:00:35]} Nd7 {[%emt 0:00:12]} 5. d4 {[%emt 0:00:36]} Ngf6 {[%emt 0:00:14]} 6. Bd3 {[%emt 0:01:25]} a6 {[%emt 0:02:39]} 7. c3 {[%emt 0:01:08]} b6 {[%emt 0:01:36]} 8. Qa4 {[%emt 0:07:04]} b5 {[%emt 0:01:34]} 9. Nxf6+ {[%emt 0:02:05]} Nxf6 {[%emt 0:03:17]} 10. Bxb5+ {[%emt 0:00:20]} Bd7 {[%emt 0:01:08]} 11. Bxd7+ {[%emt 0:00:20]} Nxd7 {[%emt 0:00:04]} 12. O-O {[%emt 0:01:20]} Be7 {[%emt 0:02:11]} 13. Ne5 {[%emt 0:00:00]} Qc8 {[%emt 0:02:03]} 14. Qc6 {[%emt 0:02:02]} Ra7 {[%emt 0:01:19]} 15. Be3 {[%emt 0:01:22]} a5 {[%emt 0:00:31]} 16. Qxd7+ {[%emt 0:04:04]} Qxd7 {[%emt 0:00:24]} 17. Nxd7 {[%emt 0:00:02]} Kxd7 {[%emt 0:00:11]} 18. Rfd1 {[%emt 0:02:08]} Rb7 {[%emt 0:00:22]} 19. b3 {[%emt 0:00:28]} h6 {[%emt 0:02:09]} 20. d5 {[%emt 0:03:26]} e5 {[%emt 0:00:30]} 21. c4 {[%emt 0:01:20]} Kc8 {[%emt 0:00:55]} 22. c5 {[%emt 0:01:01]} Rb5 {[%emt 0:01:05]} 23. d6 {[%emt 0:02:17]} cxd6 {[%emt 0:00:39]} 24. cxd6 {[%emt 0:00:07]} Bf6 {[%emt 0:00:57]} 25. Rac1+ {[%emt 0:00:49]} Kb8 {[%emt 0:00:27]} 26. Rc7 {[%emt 0:02:23]} Rb7 {[%emt 0:01:08]} 27. Rdc1 {[%emt 0:03:21]} Rxc7 {[%emt 0:01:49]} 28. dxc7+ {[%emt 0:02:10]} Kc8 {[%emt 0:02:17]} 29. a4 {[%emt 0:02:08]} Be7 {[%emt 0:00:32]} 30. Bb6 {[%emt 0:01:54]} Bb4 {[%emt 0:01:55]} 31. Rd1 {[%emt 0:00:22]} Be7 {[%emt 0:00:48]} 32. Bxa5 {[%emt 0:00:04]} Kb7 {[%emt 0:01:11]} 33. Rd5 {[%emt 0:02:21]} Bf6 {[%emt 0:01:13]} 34. Rb5+ {[%emt 0:00:28]} Ka7 {[%emt 0:02:09]} 35. Bb4 {[%emt 0:01:24]} e4 {[%emt 0:01:32]} 36. Bd6 {[%emt 0:00:31]} g5 {[%emt 0:01:40]} 37. Rb8 {[%emt 0:00:08]} 1-0

[Event "European Amateur-ch U1700 2019"]
[Site "Rhodes"]
[Date "2019.04.07"]
[Round "2.5"]
[White "Karali, Panagiota"]
[Black "Buzescu, Vladimir"]
[Result "1/2-1/2"]
[ECO "B95"]
[WhiteElo "1191"]
[BlackElo "1620"]
[Annotator "NA"]
[PlyCount "73"]
[EventDate "2019.04.06"]
[EventType "swiss"]
[EventCountry "GRE"]
[SourceTitle "playchess.com"]
[Source "ChessBase"]
[SourceQuality "1"]
[TimeControl "40/5400+30:1800+30"]

1. e4 {[%emt 0:00:00]} c5 {[%emt 0:00:00]} 2. Nf3 {[%emt 0:00:00]} d6 {[%emt 0:00:00]} 3. d4 {[%emt 0:00:32]} cxd4 {[%emt 0:00:00]} 4. Nxd4 {[%emt 0:00:08]} Nf6 {[%emt 0:00:11]} 5. Nc3 {[%emt 0:00:08]} a6 {[%emt 0:00:08]} 6. Be2 {[%emt 0:04:44]} e6 {[%emt 0:00:36]} 7. Bg5 {[%emt 0:00:46]} Be7 {[%emt 0:00:31]} 8. O-O {[%emt 0:00:25]} O-O {[%emt 0:00:29]} 9. Qd2 {[%emt 0:03:25]} Nbd7 {[%emt 0:02:03]} 10. Rad1 {[%emt 0:01:05]} Qc7 {[%emt 0:00:49]} 11. Kh1 {[%emt 0:03:29]} Re8 {[%emt 0:01:09]} 12. f4 {[%emt 0:03:23]} b5 {[%emt 0:01:18]} 13. a3 {[%emt 0:06:57]} Bb7 {[%emt 0:01:15]} 14. Bf3 {[%emt 0:13:14]} Rac8 {[%emt 0:02:05]} 15. Bxf6 {[%emt 0:03:47]} Nxf6 {[%emt 0:04:37]} 16. f5 {[%emt 0:03:42]} e5 {[%emt 0:01:23]} 17. Nb3 {[%emt 0:06:18]} Red8 {[%emt 0:05:56]} 18. Nd5 {[%emt 0:05:17]} Nxd5 {[%emt 0:01:04]} 19. exd5 {[%emt 0:00:10]} Qxc2 {[%emt 0:02:49]} 20. Na5 {[%emt 0:03:05]} Ba8 {[%emt 0:01:24]} 21. Nc6 {[%emt 0:00:30]} Qxd2 {[%emt 0:01:51]} 22. Rxd2 {[%emt 0:04:01]} Re8 {[%emt 0:09:06]} 23. Rc2 {[%emt 0:00:50]} Kf8 {[%emt 0:06:50]} 24. b4 {[%emt 0:05:46]} Bg5 {[%emt 0:02:41]} 25. Rd1 {[%emt 0:01:09]} g6 {[%emt 0:03:11]} 26. Be4 {[%emt 0:01:18]} Kg7 {[%emt 0:03:17]} 27. Rd3 {[%emt 0:01:09]} Rc7 {[%emt 0:01:32]} 28. Rdc3 {[%emt 0:01:09]} gxf5 {[%emt 0:06:04]} 29. Bxf5 {[%emt 0:00:53]} e4 {[%emt 0:03:24]} 30. Re2 {[%emt 0:04:41]} e3 {[%emt 0:01:06]} 31. g3 {[%emt 0:02:13]} h5 {[%emt 0:01:37]} 32. Kg2 {[%emt 0:00:38]} Kf6 {[%emt 0:02:21]} 33. Bh3 {[%emt 0:03:26]} Bb7 {[%emt 0:04:06]} 34. Kf3 {[%emt 0:01:51]} Bc8 {[%emt 0:02:09]} 35. Bxc8 {[%emt 0:00:10]} Rcxc8 {[%emt 0:00:51]} 36. Rec2 {[%emt 0:04:28]} Rc7 {[%emt 0:02:49]} 37. Re2 {[%emt 0:01:51] Ke5 [%emt 00:00:29] Ke4+ [%emt 00:00:01]} 1/2-1/2

[Event "European Amateur-ch U1700 2019"]
[Site "Rhodes"]
[Date "2019.04.07"]
[Round "2.6"]
[White "Cebo, Vladimir"]
[Black "Rammos, Ilias"]
[Result "1-0"]
[ECO "E61"]
[WhiteElo "1602"]
[BlackElo "1040"]
[Annotator "NA"]
[PlyCount "81"]
[EventDate "2019.04.06"]
[EventType "swiss"]
[EventCountry "GRE"]
[SourceTitle "playchess.com"]
[Source "ChessBase"]
[SourceQuality "1"]
[TimeControl "40/5400+30:1800+30"]

1. c4 {[%emt 0:00:00]} c5 {[%emt 0:01:20]} 2. e3 {[%emt 0:01:10]} Nf6 {[%emt 0:02:48]} 3. Nf3 {[%emt 0:00:38]} g6 {[%emt 0:03:38]} 4. Nc3 {[%emt 0:00:29]} Bg7 {[%emt 0:00:26]} 5. Be2 {[%emt 0:02:02]} O-O {[%emt 0:00:13]} 6. O-O {[%emt 0:00:20]} d6 {[%emt 0:01:40]} 7. d4 {[%emt 0:01:05]} cxd4 {[%emt 0:02:33]} 8. exd4 {[%emt 0:03:07]} Qc7 {[%emt 0:05:10]} 9. h3 {[%emt 0:04:19]} a6 {[%emt 0:02:59]} 10. Be3 {[%emt 0:04:07]} Rd8 {[%emt 0:04:33]} 11. d5 {[%emt 0:08:10]} Bf5 {[%emt 0:05:04]} 12. Na4 {[%emt 0:02:03]} Nbd7 {[%emt 0:02:33]} 13. Nd4 {[%emt 0:05:48]} Nc5 {[%emt 0:05:57]} 14. Nxf5 {[%emt 0:04:57]} gxf5 {[%emt 0:00:25]} 15. Rb1 {[%emt 0:04:03]} Re8 {[%emt 0:07:09]} 16. Nxc5 {[%emt 0:02:17]} dxc5 {[%emt 0:00:53]} 17. Bd3 {[%emt 0:01:10]} f4 {[%emt 0:03:43]} 18. Bd2 {[%emt 0:01:23]} Kh8 {[%emt 0:01:56]} 19. Qf3 {[%emt 0:01:18]} Bh6 {[%emt 0:01:51]} 20. Rfe1 {[%emt 0:02:16]} Rg8 {[%emt 0:01:02]} 21. Bc3 {[%emt 0:03:02]} Rg7 {[%emt 0:05:17]} 22. Be5 {[%emt 0:02:47]} Qd7 {[%emt 0:03:13]} 23. Kh2 {[%emt 0:02:02]} Rag8 {[%emt 0:02:02]} 24. Rg1 {[%emt 0:01:00]} b6 {[%emt 0:09:17]} 25. a3 {[%emt 0:00:52]} b5 {[%emt 0:05:27]} 26. b3 {[%emt 0:04:25]} Qc8 {[%emt 0:08:20]} 27. cxb5 {[%emt 0:02:54]} axb5 {[%emt 0:00:13]} 28. Rbe1 {[%emt 0:16:38]} Qd7 {[%emt 0:04:19]} 29. a4 {[%emt 0:07:42]} bxa4 {[%emt 0:01:20]} 30. bxa4 {[%emt 0:00:02]} Qxa4 {[%emt 0:01:10]} 31. d6 {[%emt 0:01:15]} Qd7 {[%emt 0:02:53]} 32. dxe7 {[%emt 0:01:05]} Qxe7 {[%emt 0:00:32]} 33. Bc3 {[%emt 0:00:08]} Qd6 {[%emt 0:01:20]} 34. Rd1 {[%emt 0:00:41]} Qb6 {[%emt 0:01:19]} 35. Rb1 {[%emt 0:02:53]} Qd6 {[%emt 0:00:08]} 36. Bc4 {[%emt 0:01:44]} Qe7 {[%emt 0:01:20]} 37. Rb6 {[%emt 0:01:02]} Bg5 {[%emt 0:01:09]} 38. Kh1 {[%emt 0:03:19]} h5 {[%emt 0:01:33]} 39. Bd3 {[%emt 0:00:57]} Bh4 {[%emt 0:00:51]} 40. Bxf6 {[%emt 0:00:00]} Bxf6 {[%emt 0:00:00]} 41. Qxh5+ {[%emt 0:01:06]} 1-0